[Event "Charlotte Fall GM-B 2023"]
[Site "Charlotte"]
[Date "2023.11.17"]
[Round "1.2"]
[White "Griffith, Kyron"]
[Black "Ippolito, Dean"]
[Result "1-0"]
[ECO "C50"]
[WhiteElo "2358"]
[BlackElo "2356"]
[Annotator "RC"]
[PlyCount "73"]
[EventDate "2023.11.17"]
[EventType "tourn"]
[EventCountry "USA"]
[SourceTitle "playchess.com"]
[Source "ChessBase"]
[SourceQuality "1"]
[TimeControl "5400+30"]

1. e4 {[%emt 0:07:56]} e5 {[%emt 0:00:04]} 2. Nc3 {[%emt 0:00:13]} Nf6 {[%emt 0:00:23]} 3. Bc4 {[%emt 0:00:06]} Nc6 {[%emt 0:00:18]} 4. d3 {[%emt 0:00:09]} Bc5 {[%emt 0:00:17]} 5. Nf3 {[%emt 0:00:29]} d6 {[%emt 0:01:08]} 6. O-O {[%emt 0:00:07]} O-O {[%emt 0:00:42]} 7. Na4 {[%emt 0:00:27]} a6 {[%emt 0:06:05]} 8. Nxc5 {[%emt 0:01:44]} dxc5 {[%emt 0:00:05]} 9. h3 {[%emt 0:04:24]} Qd6 {[%emt 0:01:18]} 10. a3 {[%emt 0:07:17]} h6 {[%emt 0:04:44]} 11. Be3 {[%emt 0:09:48]} b6 {[%emt 0:19:55]} 12. Nd2 {[%emt 0:05:02]} Be6 {[%emt 0:01:48]} 13. f4 {[%emt 0:02:55]} exf4 {[%emt 0:04:23]} 14. Bxf4 {[%emt 0:03:09]} Qd4+ {[%emt 0:04:53]} 15. Kh1 {[%emt 0:00:42]} Bxc4 {[%emt 0:02:39]} 16. Nxc4 {[%emt 0:00:50]} Nxe4 {[%emt 0:01:00]} 17. Qf3 {[%emt 0:04:24]} Rae8 {[%emt 0:11:11]} 18. Bxc7 {[%emt 0:18:41]} b5 {[%emt 0:02:36]} 19. dxe4 {[%emt 0:03:32]} bxc4 {[%emt 0:07:49]} 20. Rad1 {[%emt 0:01:21]} Qxb2 {[%emt 0:14:04]} 21. Bd6 {[%emt 0:00:28]} Qxc2 {[%emt 0:05:44]} 22. Bxf8 {[%emt 0:03:58]} Rxf8 {[%emt 0:00:03]} 23. Qf5 {[%emt 0:00:04]} Nd4 {[%emt 0:03:58]} 24. Qxc5 {[%emt 0:00:21]} Nb3 {[%emt 0:07:23]} 25. Qd5 {[%emt 0:05:13]} c3 {[%emt 0:00:00]} 26. Rxf7 {[%emt 0:01:42]} Rxf7 {[%emt 0:00:00]} 27. Rf1 {[%emt 0:00:07]} Nd2 {[%emt 0:01:30]} 28. Rxf7 {[%emt 0:00:49]} Qxe4 {[%emt 0:00:00]} 29. Qxe4 {[%emt 0:00:19]} Nxe4 {[%emt 0:00:00]} 30. Rc7 {[%emt 0:00:09]} Kh7 {[%emt 0:00:00]} 31. Rc4 {[%emt 0:02:06]} Nf2+ {[%emt 0:00:07]} 32. Kg1 {[%emt 0:00:32]} Nd1 {[%emt 0:00:03]} 33. Rc6 {[%emt 0:00:25]} a5 {[%emt 0:00:53]} 34. Kf1 {[%emt 0:01:01]} Ne3+ {[%emt 0:01:21]} 35. Kf2 {[%emt 0:00:45]} Nd5 {[%emt 0:01:36]} 36. Kf3 {[%emt 0:01:13]} g5 {[%emt 0:00:00]} 37. Rc5 {[%emt 0:00:32]} 1-0

[Event "Charlotte Fall GM-B 2023"]
[Site "Charlotte"]
[Date "2023.11.17"]
[Round "1.3"]
[White "Cordova, Emilio"]
[Black "Stremavicius, Titas"]
[Result "1/2-1/2"]
[ECO "D14"]
[WhiteElo "2568"]
[BlackElo "2563"]
[Annotator "RC"]
[PlyCount "29"]
[EventDate "2023.11.17"]
[EventType "tourn"]
[EventCountry "USA"]
[SourceTitle "playchess.com"]
[Source "ChessBase"]
[SourceQuality "1"]
[TimeControl "5400+30"]

1. d4 {[%emt 0:01:38]} c6 {[%emt 0:00:14]} 2. Nf3 {[%emt 0:00:20]} Nf6 {[%emt 0:00:17]} 3. c4 {[%emt 0:00:11]} d5 {[%emt 0:00:07]} 4. cxd5 {[%emt 0:00:13]} cxd5 {[%emt 0:00:08]} 5. Nc3 {[%emt 0:00:12]} Nc6 {[%emt 0:00:09]} 6. Bf4 {[%emt 0:00:18]} Bf5 {[%emt 0:00:10]} 7. e3 {[%emt 0:00:25]} e6 {[%emt 0:00:10]} 8. Bd3 {[%emt 0:00:33]} Bxd3 {[%emt 0:00:16]} 9. Qxd3 {[%emt 0:00:07]} Bd6 {[%emt 0:00:14]} 10. Bxd6 {[%emt 0:00:12]} Qxd6 {[%emt 0:00:10]} 11. O-O {[%emt 0:00:06]} O-O {[%emt 0:00:09]} 12. Rfc1 {[%emt 0:00:08]} Rfc8 {[%emt 0:00:08]} 13. h3 {[%emt 0:00:06]} h6 {[%emt 0:00:19]} 14. Qe2 {[%emt 0:01:08]} Qd8 {[%emt 0:01:55]} 15. Na4 {[%emt 0:00:15]} 1/2-1/2

[Event "Charlotte Fall GM-B 2023"]
[Site "Charlotte"]
[Date "2023.11.17"]
[Round "1.4"]
[White "Wang, Tianqi"]
[Black "Korley, Kassa"]
[Result "1/2-1/2"]
[ECO "B22"]
[WhiteElo "2350"]
[BlackElo "2457"]
[Annotator "RC"]
[PlyCount "87"]
[EventDate "2023.11.17"]
[EventType "tourn"]
[EventCountry "USA"]
[SourceTitle "playchess.com"]
[Source "ChessBase"]
[SourceQuality "1"]
[TimeControl "5400+30"]

1. e4 {[%emt 0:00:05]} c5 {[%emt 0:00:06]} 2. c3 {[%emt 0:02:20]} d5 {[%emt 0:03:35]} 3. exd5 {[%emt 0:00:40]} Qxd5 {[%emt 0:00:04]} 4. d4 {[%emt 0:00:24]} Nf6 {[%emt 0:00:10]} 5. Nf3 {[%emt 0:00:24]} e6 {[%emt 0:00:36]} 6. Na3 {[%emt 0:01:09]} Nc6 {[%emt 0:09:14]} 7. Be2 {[%emt 0:08:35]} Qd8 {[%emt 0:05:10]} 8. Nc2 {[%emt 0:05:18]} Be7 {[%emt 0:00:31]} 9. O-O {[%emt 0:02:27]} Qc7 {[%emt 0:05:36]} 10. dxc5 {[%emt 0:07:14]} Bxc5 {[%emt 0:00:28]} 11. Bg5 {[%emt 0:06:35]} O-O {[%emt 0:00:39]} 12. Qc1 {[%emt 0:08:45]} Nd5 {[%emt 0:06:52]} 13. c4 {[%emt 0:09:07]} Nde7 {[%emt 0:02:16]} 14. a3 {[%emt 0:00:19]} a5 {[%emt 0:02:22]} 15. b3 {[%emt 0:01:09]} b6 {[%emt 0:14:30]} 16. Qb2 {[%emt 0:03:45]} Ng6 {[%emt 0:06:13]} 17. Rfd1 {[%emt 0:04:31]} Bb7 {[%emt 0:00:36]} 18. Bd2 {[%emt 0:05:01]} Nf4 {[%emt 0:13:41]} 19. Bf1 {[%emt 0:00:45]} Ne7 {[%emt 0:01:36]} 20. Ncd4 {[%emt 0:00:57]} Neg6 {[%emt 0:03:33]} 21. b4 {[%emt 0:16:00]} Be7 {[%emt 0:00:04]} 22. Bc3 {[%emt 0:00:42]} Qc8 {[%emt 0:04:03]} 23. Re1 {[%emt 0:01:00]} Bf6 {[%emt 0:02:27]} 24. Re3 {[%emt 0:00:40]} axb4 {[%emt 0:03:43]} 25. axb4 {[%emt 0:00:48]} Rxa1 {[%emt 0:00:04]} 26. Qxa1 {[%emt 0:00:13]} Rd8 {[%emt 0:02:05]} 27. Ne1 {[%emt 0:03:23]} h5 {[%emt 0:03:02]} 28. Ndf3 {[%emt 0:02:44]} Bxc3 {[%emt 0:00:49]} 29. Qxc3 {[%emt 0:00:08]} h4 {[%emt 0:01:13]} 30. g3 {[%emt 0:00:21]} hxg3 {[%emt 0:00:06]} 31. hxg3 {[%emt 0:00:04]} Nh5 {[%emt 0:00:24]} 32. Ne5 {[%emt 0:02:04]} Nxe5 {[%emt 0:00:19]} 33. Rxe5 {[%emt 0:01:05]} Nf6 {[%emt 0:00:03]} 34. Rg5 {[%emt 0:00:42]} Kf8 {[%emt 0:01:00]} 35. Be2 {[%emt 0:00:56]} Qd7 {[%emt 0:01:45]} 36. Rb5 {[%emt 0:00:56]} Qd2 {[%emt 0:05:30]} 37. Qxd2 {[%emt 0:03:47]} Rxd2 {[%emt 0:00:01]} 38. Bf3 {[%emt 0:00:10]} Ba6 {[%emt 0:00:36]} 39. Rxb6 {[%emt 0:00:55]} Bxc4 {[%emt 0:00:03]} 40. Rb8+ {[%emt 0:00:59]} Ke7 {[%emt 0:00:10]} 41. Rb7+ {[%emt 0:00:14]} Kf8 {[%emt 0:00:42]} 42. Rb8+ {[%emt 0:00:19]} Ke7 {[%emt 0:00:08]} 43. Rb7+ {[%emt 0:00:05]} Kf8 {[%emt 0:01:41]} 44. Rb8+ {[%emt 0:04:45]} 1/2-1/2

[Event "Charlotte Fall GM-B 2023"]
[Site "Charlotte"]
[Date "2023.11.17"]
[Round "1.5"]
[White "Hilby, Craig"]
[Black "Ringoir, Tanguy"]
[Result "1/2-1/2"]
[ECO "B90"]
[WhiteElo "2402"]
[BlackElo "2507"]
[Annotator "RC"]
[PlyCount "53"]
[EventDate "2023.11.17"]
[EventType "tourn"]
[EventCountry "USA"]
[SourceTitle "playchess.com"]
[Source "ChessBase"]
[SourceQuality "1"]
[TimeControl "5400+30"]

1. e4 {[%emt 0:00:04]} c5 {[%emt 0:00:04]} 2. Nf3 {[%emt 0:00:11]} d6 {[%emt 0:00:04]} 3. d4 {[%emt 0:00:32]} cxd4 {[%emt 0:00:06]} 4. Nxd4 {[%emt 0:00:04]} Nf6 {[%emt 0:00:06]} 5. Nc3 {[%emt 0:00:10]} a6 {[%emt 0:00:05]} 6. Be3 {[%emt 0:02:59]} e5 {[%emt 0:00:07]} 7. Nf3 {[%emt 0:00:13]} Be7 {[%emt 0:00:06]} 8. h3 {[%emt 0:01:56]} Be6 {[%emt 0:00:23]} 9. g4 {[%emt 0:01:04]} h6 {[%emt 0:00:05]} 10. g5 {[%emt 0:05:26]} hxg5 {[%emt 0:00:06]} 11. Nxg5 {[%emt 0:00:08]} Nc6 {[%emt 0:00:05]} 12. Rg1 {[%emt 0:00:58]} Qa5 {[%emt 0:01:06]} 13. a3 {[%emt 0:01:49]} d5 {[%emt 0:00:55]} 14. b4 {[%emt 0:02:40]} Qd8 {[%emt 0:00:07]} 15. exd5 {[%emt 0:00:20]} Bxd5 {[%emt 0:00:05]} 16. Qd3 {[%emt 0:00:31]} e4 {[%emt 0:20:35]} 17. Qd2 {[%emt 0:00:08]} Ne5 {[%emt 0:03:06]} 18. O-O-O {[%emt 0:15:10]} Bc6 {[%emt 0:00:41]} 19. Qxd8+ {[%emt 0:28:28]} Rxd8 {[%emt 0:00:11]} 20. Bd4 {[%emt 0:03:29]} Nfd7 {[%emt 0:26:52]} 21. Ngxe4 {[%emt 0:02:25]} Rh4 {[%emt 0:00:49]} 22. Bg2 {[%emt 0:04:37]} f5 {[%emt 0:04:50]} 23. Ng3 {[%emt 0:09:28]} g6 {[%emt 0:04:43]} 24. Nd5 {[%emt 0:02:34]} Bxd5 {[%emt 0:10:53]} 25. Bxd5 {[%emt 0:00:02]} Nf6 {[%emt 0:00:03]} 26. Bxe5 {[%emt 0:01:36]} Rxd5 {[%emt 0:02:43]} 27. Rxd5 {[%emt 0:06:53]} 1/2-1/2

[Event "Charlotte Fall GM-B 2023"]
[Site "Charlotte"]
[Date "2023.11.18"]
[Round "2.1"]
[White "Gedajlovic, Max"]
[Black "Ringoir, Tanguy"]
[Result "0-1"]
[ECO "B51"]
[WhiteElo "2407"]
[BlackElo "2507"]
[Annotator "RC"]
[PlyCount "72"]
[EventDate "2023.11.17"]
[EventType "tourn"]
[EventCountry "USA"]
[SourceTitle "playchess.com"]
[Source "ChessBase"]
[SourceQuality "1"]
[TimeControl "5400+30"]

1. e4 {[%emt 0:01:28]} c5 {[%emt 0:00:04]} 2. Nf3 {[%emt 0:00:10]} d6 {[%emt 0:00:04]} 3. Bb5+ {[%emt 0:00:21]} Nd7 {[%emt 0:00:06]} 4. a4 {[%emt 0:00:12]} Ngf6 {[%emt 0:00:15]} 5. Nc3 {[%emt 0:00:10]} a6 {[%emt 0:00:08]} 6. Be2 {[%emt 0:00:37]} b6 {[%emt 0:00:10]} 7. O-O {[%emt 0:02:17]} Bb7 {[%emt 0:00:39]} 8. d3 {[%emt 0:00:24]} e6 {[%emt 0:03:36]} 9. h3 {[%emt 0:02:58]} Be7 {[%emt 0:00:05]} 10. Bf4 {[%emt 0:01:00]} e5 {[%emt 0:07:17]} 11. Bg5 {[%emt 0:08:20]} Nf8 {[%emt 0:00:22]} 12. Nd2 {[%emt 0:04:18]} Ne6 {[%emt 0:00:28]} 13. Bxf6 {[%emt 0:00:43]} Bxf6 {[%emt 0:00:02]} 14. Nc4 {[%emt 0:01:00]} O-O {[%emt 0:02:08]} 15. Ne3 {[%emt 0:03:53]} g6 {[%emt 0:02:06]} 16. Ncd5 {[%emt 0:20:43]} Bg7 {[%emt 0:01:18]} 17. c3 {[%emt 0:00:38]} Rb8 {[%emt 0:00:30]} 18. Rb1 {[%emt 0:07:00]} f5 {[%emt 0:14:06]} 19. Qb3 {[%emt 0:05:02]} Bc8 {[%emt 0:00:52]} 20. exf5 {[%emt 0:02:00]} gxf5 {[%emt 0:00:06]} 21. f4 {[%emt 0:00:51]} Kh8 {[%emt 0:11:24]} 22. fxe5 {[%emt 0:07:53]} f4 {[%emt 0:00:07]} 23. Nc4 {[%emt 0:01:30]} dxe5 {[%emt 0:00:06]} 24. Ncxb6 {[%emt 0:01:13]} Ng5 {[%emt 0:06:27]} 25. Bg4 {[%emt 0:04:08]} Bxg4 {[%emt 0:04:24]} 26. hxg4 {[%emt 0:00:05]} c4 {[%emt 0:05:35]} 27. dxc4 {[%emt 0:01:20]} Ne4 {[%emt 0:00:07]} 28. g5 {[%emt 0:17:57]} Nd2 {[%emt 0:11:49]} 29. Qb4 {[%emt 0:01:55]} Qxg5 {[%emt 0:00:49]} 30. Rf2 {[%emt 0:00:23]} Nxb1 {[%emt 0:00:36]} 31. c5 {[%emt 0:00:07]} f3 {[%emt 0:03:04]} 32. c6 {[%emt 0:03:08]} Qc1+ {[%emt 0:00:54]} 33. Kh2 {[%emt 0:00:03]} Qh6+ {[%emt 0:00:17]} 34. Kg1 {[%emt 0:00:14]} fxg2 {[%emt 0:01:21]} 35. Rxg2 {[%emt 0:00:19]} Nd2 {[%emt 0:00:18]} 36. c7 {[%emt 0:02:28]} Rf1# {[%emt 0:00:08]} 0-1

[Event "Charlotte Fall GM-B 2023"]
[Site "Charlotte"]
[Date "2023.11.18"]
[Round "2.2"]
[White "Korley, Kassa"]
[Black "Hilby, Craig"]
[Result "1-0"]
[ECO "A30"]
[WhiteElo "2457"]
[BlackElo "2402"]
[Annotator "RC"]
[PlyCount "71"]
[EventDate "2023.11.17"]
[EventType "tourn"]
[EventCountry "USA"]
[SourceTitle "playchess.com"]
[Source "ChessBase"]
[SourceQuality "1"]
[TimeControl "5400+30"]

1. Nf3 {[%emt 0:00:11]} Nf6 {[%emt 0:01:09]} 2. g3 {[%emt 0:00:09]} c5 {[%emt 0:00:14]} 3. c4 {[%emt 0:02:55]} Nc6 {[%emt 0:00:26]} 4. Bg2 {[%emt 0:00:07]} d5 {[%emt 0:00:39]} 5. cxd5 {[%emt 0:04:23]} Nxd5 {[%emt 0:00:09]} 6. d4 {[%emt 0:00:16]} cxd4 {[%emt 0:01:32]} 7. Nxd4 {[%emt 0:00:15]} Ndb4 {[%emt 0:00:16]} 8. Nxc6 {[%emt 0:00:15]} Qxd1+ {[%emt 0:00:13]} 9. Kxd1 {[%emt 0:00:04]} Nxc6 {[%emt 0:00:09]} 10. Nc3 {[%emt 0:01:09]} Bd7 {[%emt 0:02:06]} 11. Be3 {[%emt 0:02:40]} g6 {[%emt 0:02:23]} 12. Rc1 {[%emt 0:01:16]} Bg7 {[%emt 0:02:31]} 13. f4 {[%emt 0:05:28]} Rc8 {[%emt 0:13:29]} 14. Ke1 {[%emt 0:01:02]} b6 {[%emt 0:05:41]} 15. Kf2 {[%emt 0:16:08]} Na5 {[%emt 0:08:33]} 16. Nd5 {[%emt 0:05:32]} Nc4 {[%emt 0:13:19]} 17. b3 {[%emt 0:02:23]} Nxe3 {[%emt 0:02:02]} 18. Kxe3 {[%emt 0:00:39]} e6 {[%emt 0:05:45]} 19. Rxc8+ {[%emt 0:02:00]} Bxc8 {[%emt 0:00:04]} 20. Rc1 {[%emt 0:10:09]} Bd7 {[%emt 0:00:49]} 21. Nb4 {[%emt 0:00:37]} Bf8 {[%emt 0:03:46]} 22. Nd3 {[%emt 0:00:07]} Bd6 {[%emt 0:04:41]} 23. Bc6 {[%emt 0:01:44]} Bxc6 {[%emt 0:00:27]} 24. Rxc6 {[%emt 0:00:05]} Kd7 {[%emt 0:00:06]} 25. Rc2 {[%emt 0:03:48]} h5 {[%emt 0:10:48]} 26. Kd4 {[%emt 0:07:55]} f6 {[%emt 0:04:19]} 27. e4 {[%emt 0:01:35]} h4 {[%emt 0:00:58]} 28. e5 {[%emt 0:00:31]} hxg3 {[%emt 0:00:34]} 29. hxg3 {[%emt 0:00:25]} Be7 {[%emt 0:07:32]} 30. exf6 {[%emt 0:00:11]} Bxf6+ {[%emt 0:00:01]} 31. Ne5+ {[%emt 0:00:09]} Kd8 {[%emt 0:00:52]} 32. Ke4 {[%emt 0:09:45]} Rh3 {[%emt 0:01:09]} 33. g4 {[%emt 0:03:15]} Rh4 {[%emt 0:02:46]} 34. g5 {[%emt 0:07:07]} Bxe5 {[%emt 0:00:06]} 35. Kxe5 {[%emt 0:00:03]} Rh8 {[%emt 0:01:45]} 36. Rc6 {[%emt 0:00:57]} 1-0

[Event "Charlotte Fall GM-B 2023"]
[Site "Charlotte"]
[Date "2023.11.18"]
[Round "2.3"]
[White "Stremavicius, Titas"]
[Black "Wang, Tianqi"]
[Result "1-0"]
[ECO "B41"]
[WhiteElo "2563"]
[BlackElo "2350"]
[Annotator "RC"]
[PlyCount "81"]
[EventDate "2023.11.17"]
[EventType "tourn"]
[EventCountry "USA"]
[SourceTitle "playchess.com"]
[Source "ChessBase"]
[SourceQuality "1"]
[TimeControl "5400+30"]

1. c4 {[%emt 0:00:03]} e6 {[%emt 0:00:36]} 2. Nc3 {[%emt 0:00:19]} c5 {[%emt 0:01:01]} 3. Nf3 {[%emt 0:00:29]} a6 {[%emt 0:00:50]} 4. e4 {[%emt 0:06:46]} Qc7 {[%emt 0:00:25]} 5. Be2 {[%emt 0:00:35]} Nc6 {[%emt 0:01:31]} 6. d4 {[%emt 0:01:08]} cxd4 {[%emt 0:01:02]} 7. Nxd4 {[%emt 0:00:06]} Nf6 {[%emt 0:07:33]} 8. Nxc6 {[%emt 0:26:36]} dxc6 {[%emt 0:03:11]} 9. Be3 {[%emt 0:02:23]} e5 {[%emt 0:00:50]} 10. a3 {[%emt 0:05:33]} Be6 {[%emt 0:08:01]} 11. h3 {[%emt 0:00:07]} Be7 {[%emt 0:00:37]} 12. c5 {[%emt 0:05:27]} O-O {[%emt 0:03:38]} 13. b4 {[%emt 0:04:34]} a5 {[%emt 0:01:39]} 14. O-O {[%emt 0:00:47]} Nd7 {[%emt 0:01:44]} 15. Nd5 {[%emt 0:05:26]} Qd8 {[%emt 0:02:14]} 16. Nxe7+ {[%emt 0:01:09]} Qxe7 {[%emt 0:00:03]} 17. Qc2 {[%emt 0:02:20]} a4 {[%emt 0:00:14]} 18. Qc3 {[%emt 0:04:18]} Rfd8 {[%emt 0:01:40]} 19. Bd1 {[%emt 0:03:06]} f6 {[%emt 0:02:26]} 20. Bc2 {[%emt 0:00:05]} Nf8 {[%emt 0:10:14]} 21. Rfd1 {[%emt 0:00:59]} Rxd1+ {[%emt 0:00:17]} 22. Rxd1 {[%emt 0:00:06]} Bf7 {[%emt 0:00:04]} 23. Rd6 {[%emt 0:01:29]} Ne6 {[%emt 0:21:53]} 24. Qd2 {[%emt 0:00:17]} Be8 {[%emt 0:20:27]} 25. Qd1 {[%emt 0:02:37]} Nc7 {[%emt 0:00:09]} 26. Bxa4 {[%emt 0:00:39]} Kh8 {[%emt 0:00:02]} 27. Rd3 {[%emt 0:08:33]} Nb5 {[%emt 0:00:49]} 28. Bc1 {[%emt 0:00:58]} h6 {[%emt 0:06:41]} 29. Bb2 {[%emt 0:00:45]} Kh7 {[%emt 0:00:12]} 30. Bc2 {[%emt 0:01:15]} Nc7 {[%emt 0:00:18]} 31. Qd2 {[%emt 0:02:28]} Ne6 {[%emt 0:00:10]} 32. Rd6 {[%emt 0:00:57]} Kh8 {[%emt 0:02:13]} 33. Kh2 {[%emt 0:01:40]} Nf8 {[%emt 0:00:46]} 34. a4 {[%emt 0:00:36]} Rc8 {[%emt 0:00:44]} 35. Qd3 {[%emt 0:03:18]} Ne6 {[%emt 0:00:31]} 36. Qd1 {[%emt 0:00:48]} Ra8 {[%emt 0:00:42]} 37. Bb3 {[%emt 0:00:49]} Nf8 {[%emt 0:00:30]} 38. Bc1 {[%emt 0:01:10]} Bf7 {[%emt 0:01:19]} 39. Bc2 {[%emt 0:00:18]} Bc4 {[%emt 0:00:15]} 40. Be3 {[%emt 0:00:13]} Ne6 {[%emt 0:01:05]} 41. Rd7 {[%emt 0:00:24]} 1-0

[Event "Charlotte Fall GM-B 2023"]
[Site "Charlotte"]
[Date "2023.11.18"]
[Round "2.4"]
[White "Ippolito, Dean"]
[Black "Cordova, Emilio"]
[Result "1-0"]
[ECO "A62"]
[WhiteElo "2356"]
[BlackElo "2568"]
[Annotator "RC"]
[PlyCount "105"]
[EventDate "2023.11.17"]
[EventType "tourn"]
[EventCountry "USA"]
[SourceTitle "playchess.com"]
[Source "ChessBase"]
[SourceQuality "1"]
[TimeControl "5400+30"]

1. d4 {[%emt 0:00:02]} Nf6 {[%emt 0:06:51]} 2. c4 {[%emt 0:00:05]} e6 {[%emt 0:00:07]} 3. g3 {[%emt 0:00:05]} c5 {[%emt 0:00:12]} 4. d5 {[%emt 0:00:04]} exd5 {[%emt 0:00:05]} 5. cxd5 {[%emt 0:00:04]} d6 {[%emt 0:00:07]} 6. Nc3 {[%emt 0:00:08]} g6 {[%emt 0:00:59]} 7. Bg2 {[%emt 0:00:10]} Bg7 {[%emt 0:00:07]} 8. Nf3 {[%emt 0:00:04]} O-O {[%emt 0:00:12]} 9. O-O {[%emt 0:00:05]} Re8 {[%emt 0:01:07]} 10. Bf4 {[%emt 0:01:17]} Na6 {[%emt 0:01:25]} 11. Re1 {[%emt 0:01:02]} Bg4 {[%emt 0:01:39]} 12. h3 {[%emt 0:00:38]} Bxf3 {[%emt 0:00:08]} 13. Bxf3 {[%emt 0:00:05]} Nd7 {[%emt 0:00:35]} 14. Ne4 {[%emt 0:00:21]} Ne5 {[%emt 0:01:22]} 15. Bg2 {[%emt 0:00:08]} h6 {[%emt 0:00:41]} 16. g4 {[%emt 0:01:13]} Nc7 {[%emt 0:07:57]} 17. a4 {[%emt 0:00:56]} Na6 {[%emt 0:05:11]} 18. Qc1 {[%emt 0:06:16]} Kh7 {[%emt 0:00:55]} 19. g5 {[%emt 0:05:02]} hxg5 {[%emt 0:04:56]} 20. Nxg5+ {[%emt 0:00:59]} Kg8 {[%emt 0:00:07]} 21. h4 {[%emt 0:01:37]} Nb4 {[%emt 0:00:28]} 22. Ra3 {[%emt 0:03:41]} Qf6 {[%emt 0:00:54]} 23. Bd2 {[%emt 0:16:43]} a5 {[%emt 0:29:52]} 24. Rg3 {[%emt 0:06:28]} Qf5 {[%emt 0:00:56]} 25. Bh3 {[%emt 0:08:00]} Qc2 {[%emt 0:08:17]} 26. f4 {[%emt 0:06:25]} Ned3 {[%emt 0:16:13]} 27. Rxd3 {[%emt 0:26:57]} Qxc1 {[%emt 0:00:42]} 28. Rxc1 {[%emt 0:00:03]} Bxb2 {[%emt 0:00:37]} 29. Rb1 {[%emt 0:04:50]} Bg7 {[%emt 0:02:16]} 30. Kf1 {[%emt 0:08:25]} c4 {[%emt 0:03:53]} 31. Rg3 {[%emt 0:02:19]} Nxd5 {[%emt 0:00:57]} 32. Bg2 {[%emt 0:00:10]} Nf6 {[%emt 0:00:53]} 33. Rxb7 {[%emt 0:00:40]} Rab8 {[%emt 0:00:51]} 34. Rxb8 {[%emt 0:01:00]} Rxb8 {[%emt 0:00:04]} 35. Bxa5 {[%emt 0:00:10]} Nh5 {[%emt 0:00:30]} 36. Ra3 {[%emt 0:01:18]} Nxf4 {[%emt 0:00:59]} 37. Bc3 {[%emt 0:00:52]} Bxc3 {[%emt 0:02:05]} 38. Rxc3 {[%emt 0:00:02]} d5 {[%emt 0:00:05]} 39. Rf3 {[%emt 0:00:50]} Rc8 {[%emt 0:02:15]} 40. Rc3 {[%emt 0:00:41]} d4 {[%emt 0:00:05]} 41. Rc1 {[%emt 0:00:07]} c3 {[%emt 0:00:26]} 42. Be4 {[%emt 0:00:19]} Rc4 {[%emt 0:02:30]} 43. Bc2 {[%emt 0:00:04]} Rb4 {[%emt 0:00:56]} 44. Nf3 {[%emt 0:01:29]} Nd5 {[%emt 0:00:20]} 45. Kf2 {[%emt 0:00:24]} Ne3 {[%emt 0:00:16]} 46. a5 {[%emt 0:00:16]} Kg7 {[%emt 0:00:38]} 47. a6 {[%emt 0:00:22]} Nxc2 {[%emt 0:00:26]} 48. Rxc2 {[%emt 0:00:03]} Ra4 {[%emt 0:00:03]} 49. a7 {[%emt 0:00:49]} Rxa7 {[%emt 0:00:05]} 50. Nxd4 {[%emt 0:00:03]} Rc7 {[%emt 0:00:14]} 51. Ke3 {[%emt 0:00:18]} Kh6 {[%emt 0:00:13]} 52. Kd3 {[%emt 0:00:32]} Kh5 {[%emt 0:00:05]} 53. Nf3 {[%emt 0:00:05]} 1-0

[Event "Charlotte Fall GM-B 2023"]
[Site "Charlotte"]
[Date "2023.11.18"]
[Round "3.1"]
[White "Griffith, Kyron"]
[Black "Gedajlovic, Max"]
[Result "1/2-1/2"]
[ECO "C07"]
[WhiteElo "2358"]
[BlackElo "2407"]
[Annotator "RC"]
[PlyCount "105"]
[EventDate "2023.11.17"]
[EventType "tourn"]
[EventCountry "USA"]
[SourceTitle "playchess.com"]
[Source "ChessBase"]
[SourceQuality "1"]
[TimeControl "5400+30"]

1. e4 {[%emt 0:02:01]} e6 {[%emt 0:02:19]} 2. d4 {[%emt 0:00:12]} d5 {[%emt 0:00:09]} 3. Nd2 {[%emt 0:00:09]} c5 {[%emt 0:00:09]} 4. Ngf3 {[%emt 0:00:15]} cxd4 {[%emt 0:00:12]} 5. Nxd4 {[%emt 0:00:06]} Nc6 {[%emt 0:00:34]} 6. Bb5 {[%emt 0:00:10]} Bd7 {[%emt 0:00:10]} 7. Nxc6 {[%emt 0:00:15]} bxc6 {[%emt 0:00:08]} 8. Bd3 {[%emt 0:00:05]} Bd6 {[%emt 0:00:14]} 9. Qe2 {[%emt 0:00:48]} Qc7 {[%emt 0:00:16]} 10. Nf3 {[%emt 0:01:14]} dxe4 {[%emt 0:00:10]} 11. Qxe4 {[%emt 0:01:05]} Nf6 {[%emt 0:00:08]} 12. Qh4 {[%emt 0:02:23]} h6 {[%emt 0:00:08]} 13. Bd2 {[%emt 0:08:55]} c5 {[%emt 0:01:28]} 14. Bc3 {[%emt 0:06:28]} Ke7 {[%emt 0:00:22]} 15. O-O {[%emt 0:05:59]} Bc6 {[%emt 0:03:39]} 16. Bxf6+ {[%emt 0:05:41]} gxf6 {[%emt 0:00:10]} 17. Be4 {[%emt 0:00:23]} Rab8 {[%emt 0:02:56]} 18. b3 {[%emt 0:02:43]} Rhg8 {[%emt 0:05:39]} 19. Rfe1 {[%emt 0:03:18]} c4 {[%emt 0:10:33]} 20. Nd4 {[%emt 0:04:52]} Bxe4 {[%emt 0:07:19]} 21. Rxe4 {[%emt 0:00:30]} Rg5 {[%emt 0:15:12]} 22. Rae1 {[%emt 0:18:47]} cxb3 {[%emt 0:03:49]} 23. axb3 {[%emt 0:00:33]} Rb6 {[%emt 0:02:37]} 24. f4 {[%emt 0:02:21]} Rd5 {[%emt 0:03:28]} 25. Kh1 {[%emt 0:15:02]} Bc5 {[%emt 0:02:16]} 26. Nf3 {[%emt 0:02:39]} Bb4 {[%emt 0:01:56]} 27. Rc4 {[%emt 0:01:35]} Rc5 {[%emt 0:02:28]} 28. Ree4 {[%emt 0:00:24]} a5 {[%emt 0:04:28]} 29. h3 {[%emt 0:01:51]} Rxc4 {[%emt 0:02:13]} 30. Rxc4 {[%emt 0:00:19]} Rc6 {[%emt 0:00:08]} 31. Rxc6 {[%emt 0:03:04]} Qxc6 {[%emt 0:00:17]} 32. Qf2 {[%emt 0:00:32]} Kf8 {[%emt 0:04:07]} 33. Qe2 {[%emt 0:02:14]} Qd5 {[%emt 0:01:39]} 34. Kh2 {[%emt 0:03:35]} Bd6 {[%emt 0:01:36]} 35. g3 {[%emt 0:00:06]} Qc5 {[%emt 0:02:55]} 36. Kg2 {[%emt 0:00:28]} Qc6 {[%emt 0:00:23]} 37. Kf2 {[%emt 0:00:39]} e5 {[%emt 0:00:54]} 38. fxe5 {[%emt 0:02:21]} fxe5 {[%emt 0:00:02]} 39. g4 {[%emt 0:02:04]} e4 {[%emt 0:09:19]} 40. Nd4 {[%emt 0:01:36]} Bc5 {[%emt 0:02:32]} 41. c3 {[%emt 0:00:03]} Qd5 {[%emt 0:03:03]} 42. Qe3 {[%emt 0:00:09]} h5 {[%emt 0:01:54]} 43. gxh5 {[%emt 0:00:28]} Qxh5 {[%emt 0:02:52]} 44. Qxe4 {[%emt 0:02:06]} Qxh3 {[%emt 0:01:13]} 45. Qe5 {[%emt 0:00:40]} Qxc3 {[%emt 0:01:18]} 46. Qh8+ {[%emt 0:00:01]} Ke7 {[%emt 0:00:06]} 47. Qe5+ {[%emt 0:00:02]} Kf8 {[%emt 0:00:07]} 48. Qh8+ {[%emt 0:00:02]} Ke7 {[%emt 0:00:04]} 49. Qe5+ {[%emt 0:00:02]} Kd7 {[%emt 0:01:58]} 50. Qd5+ {[%emt 0:00:02]} Ke8 {[%emt 0:01:00]} 51. Qc6+ {[%emt 0:00:55]} Ke7 {[%emt 0:01:23]} 52. Qc7+ {[%emt 0:00:11]} Kf6 {[%emt 0:00:53]} 53. Qf4+ {[%emt 0:00:03]} 1/2-1/2